[Event "Moscow Rapid-ch 2018"]
[Site "Moscow"]
[Date "2018.12.08"]
[Round "5"]
[White "Vlasov, Sergey"]
[Black "Chudinovskikh, Alexander M"]
[Result "1-0"]
[ECO "C24"]
[WhiteElo "2229"]
[BlackElo "2184"]
[Annotator "NA"]
[PlyCount "109"]
[EventDate "2018.12.08"]
[EventType "swiss"]
[EventCountry "RUS"]
[SourceTitle "playchess.com"]
[Source "ChessBase"]
[SourceQuality "1"]
[TimeControl "900+10"]

1. e4 {[%emt 0:00:00]} e5 {[%emt 0:00:00]} 2. Bc4 {[%emt 0:00:00]} Nf6 {[%emt 0:00:00]} 3. Qe2 {[%emt 0:00:00]} Bc5 {[%emt 0:00:09]} 4. Nf3 {[%emt 0:00:01]} Nc6 {[%emt 0:00:11]} 5. c3 {[%emt 0:00:04]} O-O {[%emt 0:00:03]} 6. Bb3 {[%emt 0:00:01]} d5 {[%emt 0:00:06]} 7. d3 {[%emt 0:00:02]} a5 {[%emt 0:00:30]} 8. a4 {[%emt 0:00:45]} Be6 {[%emt 0:00:12]} 9. Bc2 {[%emt 0:00:06]} Ng4 {[%emt 0:01:05]} 10. O-O {[%emt 0:00:33]} f5 {[%emt 0:00:02]} 11. Ng5 {[%emt 0:05:00]} Bc8 {[%emt 0:00:36]} 12. exd5 {[%emt 0:01:30]} Qxd5 {[%emt 0:00:54]} 13. Nd2 {[%emt 0:00:08]} Kh8 {[%emt 0:00:29]} 14. Bb3 {[%emt 0:01:04]} Qd6 {[%emt 0:00:01]} 15. h3 {[%emt 0:03:07]} Nh6 {[%emt 0:00:15]} 16. Kh1 {[%emt 0:01:33]} Bd7 {[%emt 0:00:10]} 17. Nde4 {[%emt 0:00:58]} fxe4 {[%emt 0:00:18]} 18. Nxe4 {[%emt 0:00:02]} Qg6 {[%emt 0:03:55]} 19. Nxc5 {[%emt 0:00:09]} Bf5 {[%emt 0:00:04]} 20. Bc4 {[%emt 0:01:23]} Bg4 {[%emt 0:02:23]} 21. Qe3 {[%emt 0:00:24]} Nf5 {[%emt 0:01:57]} 22. Qg5 {[%emt 0:00:59]} Ng3+ {[%emt 0:00:04]} 23. Kg1 {[%emt 0:00:13]} Qxg5 {[%emt 0:02:36]} 24. Bxg5 {[%emt 0:00:04]} Nxf1 {[%emt 0:00:09]} 25. hxg4 {[%emt 0:00:28]} h6 {[%emt 0:00:02]} 26. Bc1 {[%emt 0:00:15]} Nh2 {[%emt 0:00:13]} 27. Kxh2 {[%emt 0:00:17]} Rxf2 {[%emt 0:00:01]} 28. Ne4 {[%emt 0:00:17]} Rf1 {[%emt 0:00:07]} 29. b3 {[%emt 0:00:02]} Raf8 {[%emt 0:00:13]} 30. Bb2 {[%emt 0:00:02]} Rxa1 {[%emt 0:00:02]} 31. Bxa1 {[%emt 0:00:01]} Rf1 {[%emt 0:00:12]} 32. Bb2 {[%emt 0:00:01]} Ne7 {[%emt 0:00:06]} 33. Ba3 {[%emt 0:00:12]} Ng6 {[%emt 0:00:03]} 34. Bc5 {[%emt 0:00:17]} Nf4 {[%emt 0:00:12]} 35. g3 {[%emt 0:00:04]} Ne2 {[%emt 0:00:30]} 36. Be3 {[%emt 0:00:27]} Rd1 {[%emt 0:00:19]} 37. Kg2 {[%emt 0:00:07]} Rb1 {[%emt 0:00:19]} 38. Kf3 {[%emt 0:00:17]} Nc1 {[%emt 0:00:09]} 39. Bxc1 Rxc1 40. Ke3 {[%emt 0:00:21]} g6 {[%emt 0:00:04]} 41. b4 {[%emt 0:00:08]} Ra1 {[%emt 0:00:06]} 42. Bb3 {[%emt 0:00:07]} axb4 {[%emt 0:00:20]} 43. cxb4 {[%emt 0:00:01]} Rb1 {[%emt 0:00:05]} 44. Nd2 {[%emt 0:00:03]} Rg1 {[%emt 0:00:01]} 45. Kf2 {[%emt 0:00:07]} Rh1 {[%emt 0:00:07]} 46. a5 {[%emt 0:00:03]} Kg7 {[%emt 0:00:03]} 47. Bd5 {[%emt 0:00:08]} Rd1 {[%emt 0:00:21]} 48. Ke2 {[%emt 0:00:01]} Rg1 {[%emt 0:00:04]} 49. Bxb7 {[%emt 0:00:06]} Ra1 {[%emt 0:00:05]} 50. a6 {[%emt 0:00:04]} h5 {[%emt 0:00:01]} 51. gxh5 {[%emt 0:00:02]} gxh5 {[%emt 0:00:01]} 52. Nb3 {[%emt 0:00:10]} Ra2+ {[%emt 0:00:06]} 53. Ke3 {[%emt 0:00:01]} Kf6 {[%emt 0:00:01]} 54. Na5 {[%emt 0:00:01]} Ra3 {[%emt 0:00:07]} 55. a7 {[%emt 0:00:03]} 1-0

[Event "Moscow Rapid-ch 2018"]
[Site "Moscow"]
[Date "2018.12.08"]
[Round "5"]
[White "Chasovnikova, Eugenia"]
[Black "Kanevskaya, Anna"]
[Result "0-1"]
[ECO "D43"]
[WhiteElo "2201"]
[BlackElo "2105"]
[Annotator "NA"]
[PlyCount "96"]
[EventDate "2018.12.08"]
[EventType "swiss"]
[EventCountry "RUS"]
[SourceTitle "playchess.com"]
[Source "ChessBase"]
[SourceQuality "1"]
[TimeControl "900+10"]

1. d4 Nf6 2. Nf3 d5 3. c4 c6 4. Nc3 e6 5. Bg5 h6 6. Bh4 Nbd7 7. cxd5 exd5 8. e3 Be7 9. Bd3 O-O 10. Qc2 Re8 11. h3 Ne4 12. Bxe7 Qxe7 13. Bxe4 dxe4 14. Nd2 Nf6 15. Nc4 Qb4 16. Ne5 c5 17. O-O-O Bf5 18. g4 Bh7 19. a3 Qa5 20. Qb3 Qc7 21. h4 cxd4 22. exd4 Rxe5 23. dxe5 Nxg4 24. e6 Nxf2 25. exf7+ Kh8 26. Rhf1 e3 27. Qe6 Rf8 28. Qxe3 Nxd1 29. Qe8 Qd6 30. Rxd1 Qf4+ 31. Rd2 Qxf7 32. Qxf7 Rxf7 33. Rd8+ Bg8 34. Nd5 Kh7 35. h5 Rf5 36. Ne7 Rc5+ 37. Kd2 Bf7 38. Rd7 Rb5 39. b4 Bxh5 40. Nd5 Bf3 41. Nc3 Re5 42. a4 h5 43. Kd3 h4 44. Kd4 Rf5 45. Ke3 h3 46. Rd2 Bg2 47. Ne2 h2 48. Ng3 Rf3+ 0-1

[Event "Moscow Rapid-ch 2018"]
[Site "Moscow"]
[Date "2018.12.08"]
[Round "5"]
[White "Kornilovich, Dmitry"]
[Black "Dragomarezkij, Evgeni"]
[Result "0-1"]
[ECO "B40"]
[WhiteElo "2133"]
[BlackElo "2385"]
[Annotator "NA"]
[PlyCount "106"]
[EventDate "2018.12.08"]
[EventType "swiss"]
[EventCountry "RUS"]
[SourceTitle "playchess.com"]
[Source "ChessBase"]
[SourceQuality "1"]
[TimeControl "900+10"]

1. e4 {[%emt 0:00:00]} c5 {[%emt 0:00:00]} 2. Nf3 {[%emt 0:00:02]} e6 {[%emt 0:00:00]} 3. b3 {[%emt 0:00:00]} Nc6 {[%emt 0:00:00]} 4. Bb2 {[%emt 0:00:12]} a6 {[%emt 0:00:00]} 5. e5 {[%emt 0:00:38]} g6 {[%emt 0:00:53]} 6. g3 {[%emt 0:00:13]} Bg7 {[%emt 0:00:04]} 7. Bg2 {[%emt 0:00:05]} Nh6 {[%emt 0:00:53]} 8. O-O {[%emt 0:00:17]} Ng4 {[%emt 0:00:49]} 9. d4 {[%emt 0:01:24]} cxd4 {[%emt 0:00:12]} 10. Nxd4 {[%emt 0:00:04]} Ngxe5 {[%emt 0:01:04]} 11. f4 {[%emt 0:01:17]} O-O {[%emt 0:00:26]} 12. fxe5 {[%emt 0:00:30]} Nxe5 {[%emt 0:00:01]} 13. Kh1 {[%emt 0:00:16]} d5 {[%emt 0:00:45]} 14. Nf3 {[%emt 0:00:13]} Nc6 {[%emt 0:01:07]} 15. Bxg7 {[%emt 0:00:05]} Kxg7 {[%emt 0:00:02]} 16. c4 {[%emt 0:02:12]} dxc4 {[%emt 0:00:20]} 17. bxc4 {[%emt 0:00:10]} e5 {[%emt 0:00:18]} 18. Nc3 {[%emt 0:00:24]} Be6 {[%emt 0:00:08]} 19. Nd5 {[%emt 0:00:16]} b5 {[%emt 0:00:12]} 20. cxb5 {[%emt 0:02:07]} axb5 {[%emt 0:00:02]} 21. Nc3 {[%emt 0:00:01]} b4 {[%emt 0:00:32]} 22. Ne4 {[%emt 0:00:01]} Qxd1 {[%emt 0:01:21]} 23. Rfxd1 {[%emt 0:00:05]} Bxa2 {[%emt 0:00:50]} 24. Nc5 {[%emt 0:01:09]} b3 {[%emt 0:00:25]} 25. Nxe5 {[%emt 0:02:11]} b2 {[%emt 0:02:04]} 26. Nxc6 {[%emt 0:00:24]} bxa1=Q {[%emt 0:00:34]} 27. Rxa1 {[%emt 0:00:02]} Bd5 {[%emt 0:00:32]} 28. Rxa8 {[%emt 0:00:29]} Bxg2+ {[%emt 0:00:05]} 29. Kxg2 {[%emt 0:00:01]} Rxa8 {[%emt 0:00:01]} 30. Nd4 {[%emt 0:00:20]} Ra2+ {[%emt 0:00:03]} 31. Kf3 {[%emt 0:00:57]} Rxh2 {[%emt 0:00:11]} 32. Ne2 {[%emt 0:00:14]} Rh1 {[%emt 0:00:06]} 33. Ne4 {[%emt 0:00:05]} Rf1+ {[%emt 0:00:06]} 34. Kg2 {[%emt 0:00:13]} Ra1 {[%emt 0:00:03]} 35. Kf3 {[%emt 0:00:10]} f5 {[%emt 0:00:04]} 36. Nc5 {[%emt 0:00:23]} Ra3+ {[%emt 0:00:17]} 37. Kf2 {[%emt 0:00:52]} Ra2 {[%emt 0:00:50]} 38. Kf3 {[%emt 0:00:03]} Rc2 {[%emt 0:00:14]} 39. Nd7 {[%emt 0:00:11]} Rc7 {[%emt 0:00:13]} 40. Nb6 {[%emt 0:00:12]} Rc5 {[%emt 0:00:28]} 41. Nf4 {[%emt 0:00:38]} Rc3+ {[%emt 0:00:05]} 42. Kf2 {[%emt 0:00:05]} Rb3 {[%emt 0:00:06]} 43. Nd7 {[%emt 0:00:16]} Ra3 {[%emt 0:00:32]} 44. Kg2 {[%emt 0:00:10]} Ra7 {[%emt 0:00:13]} 45. Nc5 {[%emt 0:00:38]} Kf6 {[%emt 0:00:11]} 46. Kf3 {[%emt 0:00:45]} Ke5 {[%emt 0:00:11]} 47. Nce6 {[%emt 0:00:48]} Ra3+ {[%emt 0:00:11]} 48. Kg2 {[%emt 0:00:01]} Kf6 {[%emt 0:00:33]} 49. Nc7 {[%emt 0:00:44]} g5 {[%emt 0:00:20]} 50. Ne2 {[%emt 0:00:06]} Ke5 {[%emt 0:00:06]} 51. Kf2 {[%emt 0:00:18]} Ra5 {[%emt 0:00:30]} 52. Ne8 {[%emt 0:00:09]} Ra7 {[%emt 0:00:17]} 53. Ng1 {[%emt 0:00:04]} g4 {[%emt 0:00:14]} 0-1

[Event "Moscow Rapid-ch 2018"]
[Site "Moscow"]
[Date "2018.12.08"]
[Round "5"]
[White "Zaitseva, Lyudmila"]
[Black "Vyrtosu, Natalia"]
[Result "1-0"]
[ECO "D02"]
[WhiteElo "1931"]
[BlackElo "1952"]
[Annotator "NA"]
[PlyCount "81"]
[EventDate "2018.12.08"]
[EventType "swiss"]
[EventCountry "RUS"]
[SourceTitle "playchess.com"]
[Source "ChessBase"]
[SourceQuality "1"]
[TimeControl "900+10"]

1. d4 {[%emt 0:00:00]} d5 {[%emt 0:00:00]} 2. Nf3 {[%emt 0:00:00]} Bf5 {[%emt 0:00:16]} 3. c4 {[%emt 0:00:01]} e6 {[%emt 0:00:12]} 4. Nc3 {[%emt 0:00:10]} c6 {[%emt 0:00:02]} 5. Qb3 {[%emt 0:00:21]} Qc8 {[%emt 0:00:38]} 6. Bf4 {[%emt 0:00:05]} Nf6 {[%emt 0:00:05]} 7. h3 {[%emt 0:00:35]} Nbd7 {[%emt 0:00:17]} 8. e3 {[%emt 0:00:05]} h6 {[%emt 0:00:31]} 9. Be2 {[%emt 0:00:02]} Be7 {[%emt 0:00:02]} 10. O-O {[%emt 0:00:03]} O-O {[%emt 0:00:01]} 11. Rfc1 {[%emt 0:01:10]} Ne4 {[%emt 0:01:08]} 12. cxd5 {[%emt 0:00:40]} Nxc3 {[%emt 0:00:04]} 13. bxc3 {[%emt 0:00:07]} exd5 {[%emt 0:01:00]} 14. a4 {[%emt 0:00:49]} b6 {[%emt 0:00:55]} 15. c4 {[%emt 0:00:34]} Be6 {[%emt 0:00:08]} 16. cxd5 {[%emt 0:01:44]} Bxd5 {[%emt 0:00:06]} 17. Qc2 {[%emt 0:00:36]} Nf6 {[%emt 0:01:23]} 18. Nd2 {[%emt 0:00:06]} Qe6 {[%emt 0:00:20]} 19. Bd3 {[%emt 0:01:02]} Nh5 {[%emt 0:00:42]} 20. Be5 {[%emt 0:01:20]} f5 {[%emt 0:01:00]} 21. f3 {[%emt 0:01:37]} Bg5 {[%emt 0:04:30]} 22. e4 {[%emt 0:00:52]} Bxd2 {[%emt 0:00:54]} 23. Qxd2 {[%emt 0:00:06]} fxe4 {[%emt 0:00:06]} 24. fxe4 {[%emt 0:00:07]} Bb3 {[%emt 0:00:02]} 25. Ra3 {[%emt 0:00:33]} c5 {[%emt 0:00:30]} 26. Rxb3 {[%emt 0:00:13]} Qxb3 {[%emt 0:00:26]} 27. Bc4+ {[%emt 0:00:01]} Qxc4 {[%emt 0:00:02]} 28. Rxc4 {[%emt 0:00:02]} cxd4 {[%emt 0:00:05]} 29. Qxd4 {[%emt 0:00:05]} Rad8 {[%emt 0:00:09]} 30. Qa1 {[%emt 0:01:06]} Rd2 {[%emt 0:00:13]} 31. Qe1 {[%emt 0:00:30]} Rfd8 {[%emt 0:00:21]} 32. Rc1 {[%emt 0:00:06]} Ra2 {[%emt 0:00:15]} 33. Qh4 {[%emt 0:00:30]} Rdd2 {[%emt 0:01:24]} 34. Qxh5 {[%emt 0:00:05]} Rxg2+ {[%emt 0:00:02]} 35. Kh1 {[%emt 0:00:01]} Rg5 {[%emt 0:00:12]} 36. Qe8+ {[%emt 0:00:02]} Kh7 {[%emt 0:00:02]} 37. Bf4 {[%emt 0:00:57]} Rg6 {[%emt 0:00:02]} 38. e5 {[%emt 0:00:16]} Ra3 {[%emt 0:00:11]} 39. Qd7 {[%emt 0:00:27]} Rf3 {[%emt 0:00:09]} 40. Qf5 {[%emt 0:00:05]} Rf2 {[%emt 0:00:30]} 41. Rg1 {[%emt 0:00:07]} 1-0

[Event "Moscow Rapid-ch 2018"]
[Site "Moscow"]
[Date "2018.12.08"]
[Round "5"]
[White "Usov, Aleksandr E."]
[Black "Reprintsev, Alexander"]
[Result "0-1"]
[ECO "D08"]
[WhiteElo "1593"]
[BlackElo "2371"]
[Annotator "NA"]
[PlyCount "92"]
[EventDate "2018.12.08"]
[EventType "swiss"]
[EventCountry "RUS"]
[SourceTitle "playchess.com"]
[Source "ChessBase"]
[SourceQuality "1"]
[TimeControl "900+10"]

1. d4 {[%emt 0:00:00]} d5 2. c4 e5 {[%emt 0:00:00]} 3. Nc3 {[%emt 0:00:00]} exd4 {[%emt 0:00:00]} 4. Qxd4 {[%emt 0:00:00]} Nc6 {[%emt 0:00:00]} 5. Qe3+ {[%emt 0:00:23]} Be6 {[%emt 0:00:15]} 6. cxd5 {[%emt 0:00:20]} Nb4 {[%emt 0:00:01]} 7. Qd2 {[%emt 0:00:41]} Nxd5 {[%emt 0:00:05]} 8. Nxd5 {[%emt 0:00:01]} Qxd5 {[%emt 0:00:06]} 9. Qxd5 {[%emt 0:00:05]} Bxd5 {[%emt 0:00:02]} 10. Nf3 {[%emt 0:00:02]} O-O-O {[%emt 0:00:44]} 11. Bd2 {[%emt 0:00:09]} Nf6 {[%emt 0:00:03]} 12. e3 {[%emt 0:00:15]} Ne4 {[%emt 0:00:03]} 13. a3 {[%emt 0:00:17]} Nxf2 {[%emt 0:00:49]} 14. Kxf2 {[%emt 0:00:14]} Bxf3 {[%emt 0:00:02]} 15. Kxf3 {[%emt 0:00:35]} Rxd2 {[%emt 0:00:02]} 16. Bc4 {[%emt 0:00:01]} Rxb2 {[%emt 0:00:26]} 17. Rhd1 {[%emt 0:00:33]} Bd6 {[%emt 0:00:05]} 18. a4 {[%emt 0:00:28]} Re8 {[%emt 0:00:32]} 19. Rab1 {[%emt 0:00:13]} Rxb1 {[%emt 0:00:04]} 20. Rxb1 {[%emt 0:00:01]} c6 {[%emt 0:01:08]} 21. Rd1 {[%emt 0:01:24]} Kc7 {[%emt 0:00:02]} 22. Rf1 {[%emt 0:00:11]} f6 {[%emt 0:00:02]} 23. Rc1 {[%emt 0:00:17]} a6 {[%emt 0:00:08]} 24. e4 {[%emt 0:00:05]} Re5 {[%emt 0:00:06]} 25. Bg8 {[%emt 0:00:40]} Ra5 {[%emt 0:00:39]} 26. Bxh7 {[%emt 0:00:41]} Rxa4 {[%emt 0:00:03]} 27. Kg4 {[%emt 0:00:09]} Ra2 {[%emt 0:00:11]} 28. Kf5 {[%emt 0:00:10]} Rxg2 {[%emt 0:00:10]} 29. h4 {[%emt 0:00:02]} a5 {[%emt 0:00:09]} 30. Bg6 {[%emt 0:00:28]} a4 {[%emt 0:00:06]} 31. h5 {[%emt 0:00:01]} a3 {[%emt 0:00:05]} 32. Ke6 {[%emt 0:00:02]} Be5 {[%emt 0:00:06]} 33. h6 {[%emt 0:00:19]} Rxg6 {[%emt 0:00:21]} 34. Rc2 {[%emt 0:00:24]} Rxh6 {[%emt 0:00:07]} 35. Kf5 {[%emt 0:00:03]} Rh2 {[%emt 0:00:10]} 36. Rc5 {[%emt 0:01:56]} a2 {[%emt 0:00:06]} 37. Ra5 {[%emt 0:00:00]} a1=Q {[%emt 0:00:04]} 38. Rxa1 {[%emt 0:00:19]} Bxa1 {[%emt 0:00:02]} 39. Ke6 {[%emt 0:00:18]} b5 {[%emt 0:00:13]} 40. e5 {[%emt 0:00:04]} b4 {[%emt 0:00:07]} 41. exf6 {[%emt 0:00:07]} gxf6 {[%emt 0:00:03]} 42. Kf7 {[%emt 0:00:00]} b3 {[%emt 0:00:03]} 43. Ke7 {[%emt 0:00:02]} b2 {[%emt 0:00:02]} 44. Ke6 {[%emt 0:00:02]} b1=Q {[%emt 0:00:03]} 45. Kf7 {[%emt 0:00:01]} Rh7+ {[%emt 0:00:05]} 46. Kf8 {[%emt 0:00:03]} Qb8# {[%emt 0:00:02] Kg7 Rxg7} 0-1

[Event "Moscow Rapid-ch 2018"]
[Site "Moscow"]
[Date "2018.12.08"]
[Round "5"]
[White "Parpiev, Isaak"]
[Black "Pavlov, Danila"]
[Result "0-1"]
[ECO "C02"]
[WhiteElo "1406"]
[BlackElo "2323"]
[Annotator "NA"]
[PlyCount "70"]
[EventDate "2018.12.08"]
[EventType "swiss"]
[EventCountry "RUS"]
[SourceTitle "playchess.com"]
[Source "ChessBase"]
[SourceQuality "1"]
[TimeControl "900+10"]

1. e4 e6 2. d4 d5 3. e5 c5 4. c3 Qb6 5. Nf3 Nc6 6. a3 Nh6 7. Bd3 Bd7 8. Bc2 cxd4 9. cxd4 Qa6 10. Bd3 Qb6 11. Bc2 g6 12. O-O Nf5 13. Bxf5 gxf5 14. Nc3 Na5 15. Ng5 Be7 16. Qh5 O-O-O 17. Qxf7 Rde8 18. Be3 Rhf8 19. Qh5 f4 20. Rac1 Kb8 21. Bd2 Rf5 22. h4 Nb3 23. Rcd1 Qxd4 24. Be3 Qxe5 25. Bc1 h6 26. Qxh6 Rh8 27. Qg6 Bxg5 28. hxg5 Rxg5 29. Qf7 Rgh5 30. g3 Rh1+ 31. Kg2 R1h2+ 32. Kg1 Nxc1 33. Rxc1 fxg3 34. Qxd7 gxf2+ 35. Rxf2 Qg3+ 0-1

[Event "Moscow Rapid-ch 2018"]
[Site "Moscow"]
[Date "2018.12.08"]
[Round "6"]
[White "Gorbatov, Alexej"]
[Black "Girshgorn, Leonid"]
[Result "1-0"]
[ECO "B10"]
[WhiteElo "2389"]
[BlackElo "2038"]
[Annotator "NA"]
[PlyCount "101"]
[EventDate "2018.12.08"]
[EventType "swiss"]
[EventCountry "RUS"]
[SourceTitle "playchess.com"]
[Source "ChessBase"]
[SourceQuality "1"]
[TimeControl "900+10"]

1. e4 {[%emt 0:00:00]} c6 {[%emt 0:00:00]} 2. Nc3 {[%emt 0:00:00]} d5 {[%emt 0:00:00]} 3. Qf3 {[%emt 0:00:00]} dxe4 {[%emt 0:00:00]} 4. Nxe4 {[%emt 0:00:00]} Nf6 {[%emt 0:00:00]} 5. Nxf6+ {[%emt 0:00:00]} exf6 {[%emt 0:00:00]} 6. Bc4 {[%emt 0:00:02]} Bd6 {[%emt 0:00:00]} 7. Ne2 {[%emt 0:00:03]} O-O {[%emt 0:00:00]} 8. d4 {[%emt 0:00:04]} Re8 {[%emt 0:00:01]} 9. Be3 {[%emt 0:00:41]} Nd7 {[%emt 0:00:08]} 10. Bd3 {[%emt 0:00:39]} Nb6 {[%emt 0:00:40]} 11. c4 {[%emt 0:01:32]} Bb4+ {[%emt 0:00:12]} 12. Kf1 {[%emt 0:00:01]} Be6 {[%emt 0:00:21]} 13. b3 {[%emt 0:00:18]} a5 {[%emt 0:01:05]} 14. a3 {[%emt 0:03:24]} Bf8 {[%emt 0:00:16]} 15. a4 {[%emt 0:00:02]} Nd7 {[%emt 0:00:29]} 16. Rd1 {[%emt 0:00:48]} g6 {[%emt 0:03:07]} 17. Nf4 {[%emt 0:00:55]} Bg7 {[%emt 0:00:07]} 18. h4 {[%emt 0:00:52]} h5 {[%emt 0:01:33]} 19. Nxe6 {[%emt 0:00:15]} Rxe6 {[%emt 0:00:01]} 20. Bc2 {[%emt 0:00:18]} Re8 {[%emt 0:01:33]} 21. g3 {[%emt 0:00:52]} f5 {[%emt 0:00:03]} 22. Kg2 {[%emt 0:00:09]} Nf6 {[%emt 0:00:08]} 23. Bg5 {[%emt 0:00:20]} Qd6 {[%emt 0:00:10]} 24. Bf4 {[%emt 0:00:19]} Qb4 {[%emt 0:00:38]} 25. Be5 {[%emt 0:00:24]} Rad8 {[%emt 0:00:50]} 26. Rd3 {[%emt 0:02:35]} Ng4 {[%emt 0:01:07]} 27. Bxg7 {[%emt 0:00:11]} Kxg7 {[%emt 0:00:01]} 28. Rhd1 {[%emt 0:00:28]} Re7 {[%emt 0:02:22]} 29. R3d2 {[%emt 0:00:03]} Rde8 {[%emt 0:00:04]} 30. d5 {[%emt 0:00:42]} cxd5 {[%emt 0:00:10]} 31. cxd5 {[%emt 0:00:42]} Qd6 {[%emt 0:00:33]} 32. Qc3+ {[%emt 0:02:32]} Kh7 {[%emt 0:00:27]} 33. Qd4 {[%emt 0:00:22]} Re2 {[%emt 0:00:30]} 34. Bd3 {[%emt 0:00:52]} Rxf2+ {[%emt 0:00:33]} 35. Rxf2 {[%emt 0:00:05]} Ne3+ {[%emt 0:00:01]} 36. Kh3 {[%emt 0:00:14]} Nxd1 {[%emt 0:00:07]} 37. Rf3 {[%emt 0:00:07]} Qe5 {[%emt 0:03:06]} 38. Qxe5 {[%emt 0:00:10]} Rxe5 {[%emt 0:00:01]} 39. Bc4 {[%emt 0:00:07]} Re7 {[%emt 0:00:38]} 40. Bb5 {[%emt 0:00:10]} Re5 {[%emt 0:00:27]} 41. d6 {[%emt 0:00:09]} Rd5 {[%emt 0:00:01]} 42. d7 {[%emt 0:00:01]} Kg7 {[%emt 0:00:03]} 43. Rf1 {[%emt 0:00:23]} Ne3 {[%emt 0:00:09]} 44. Re1 {[%emt 0:00:04]} Ng4 {[%emt 0:00:01]} 45. Re8 {[%emt 0:00:21]} Rd2 {[%emt 0:00:04]} 46. Re2 {[%emt 0:00:01]} Rd1 {[%emt 0:00:20]} 47. Kg2 {[%emt 0:00:14]} Nf6 {[%emt 0:00:01]} 48. Re8 {[%emt 0:00:11]} Rd2+ {[%emt 0:00:05]} 49. Kf1 {[%emt 0:00:01]} Ng4 {[%emt 0:00:10]} 50. Ke1 {[%emt 0:00:06]} Ne5 {[%emt 0:00:20]} 51. Kxd2 1-0

[Event "Moscow Rapid-ch 2018"]
[Site "Moscow"]
[Date "2018.12.08"]
[Round "6"]
[White "Dragomarezkij, Evgeni"]
[Black "Tsvetkov, Andrey"]
[Result "1/2-1/2"]
[ECO "D45"]
[WhiteElo "2385"]
[BlackElo "2338"]
[Annotator "NA"]
[PlyCount "103"]
[EventDate "2018.12.08"]
[EventType "swiss"]
[EventCountry "RUS"]
[SourceTitle "playchess.com"]
[Source "ChessBase"]
[SourceQuality "1"]
[TimeControl "900+10"]

1. c4 e6 2. Nc3 d5 3. d4 c6 4. e3 Nf6 5. Nf3 Nbd7 6. Qc2 Bd6 7. b3 O-O 8. Be2 Qe7 9. O-O b6 10. e4 dxe4 11. Nxe4 Nxe4 12. Qxe4 Bb7 13. Bg5 Nf6 14. Qe3 h6 15. Bh4 c5 16. Rad1 Rad8 17. Ne5 cxd4 18. Qxd4 Bc5 19. Qb2 g5 20. Bg3 Ne4 21. Bf3 Nxg3 22. hxg3 Bxf3 23. gxf3 Qf6 24. Qe2 Qf5 25. Kg2 Rd6 26. Ng4 Kg7 27. Qb2+ f6 28. Rxd6 Bxd6 29. Rh1 Rh8 30. Qd4 Bc5 31. Qd7+ Kg6 32. Re1 h5 33. Ne3 Bxe3 34. Rxe3 e5 35. Rd3 Qxd7 36. Rxd7 Rh7 37. Rd6 Re7 38. Rc6 Kf7 39. c5 Re6 40. Rc7+ Re7 41. cxb6 axb6 42. Rc8 Re8 43. Rxe8 Kxe8 44. Kh3 Kd7 45. f4 exf4 46. gxf4 Kd6 47. b4 Kd5 48. a4 Kc4 49. a5 bxa5 50. bxa5 Kb5 51. fxg5 fxg5 52. Kg3 {Kb6} 1/2-1/2

[Event "Moscow Rapid-ch 2018"]
[Site "Moscow"]
[Date "2018.12.08"]
[Round "6"]
[White "Pavlov, Danila"]
[Black "Stukan, Martin"]
[Result "1/2-1/2"]
[ECO "B90"]
[WhiteElo "2323"]
[BlackElo "2142"]
[Annotator "NA"]
[PlyCount "123"]
[EventDate "2018.12.08"]
[EventType "swiss"]
[EventCountry "RUS"]
[SourceTitle "playchess.com"]
[Source "ChessBase"]
[SourceQuality "1"]
[TimeControl "900+10"]

1. e4 {[%emt 0:00:00]} c5 {[%emt 0:00:00]} 2. Nf3 {[%emt 0:00:00]} d6 {[%emt 0:00:00]} 3. d4 {[%emt 0:00:00]} cxd4 {[%emt 0:00:00]} 4. Nxd4 {[%emt 0:00:00]} Nf6 {[%emt 0:00:00]} 5. Nc3 a6 6. Be3 {[%emt 0:00:00]} e5 {[%emt 0:00:00]} 7. Nb3 {[%emt 0:00:00]} Be6 {[%emt 0:00:00]} 8. Qd2 {[%emt 0:00:00]} Nbd7 {[%emt 0:00:02]} 9. O-O-O {[%emt 0:00:01]} Be7 {[%emt 0:00:04]} 10. f4 {[%emt 0:00:01]} Rc8 {[%emt 0:00:14]} 11. f5 {[%emt 0:00:03]} Bc4 {[%emt 0:00:01]} 12. g4 {[%emt 0:00:02]} Bxf1 {[%emt 0:00:29]} 13. Rdxf1 {[%emt 0:00:01]} Nxg4 {[%emt 0:00:02]} 14. Rhg1 {[%emt 0:00:01]} Nxe3 {[%emt 0:00:02]} 15. Qxe3 {[%emt 0:00:00]} h6 {[%emt 0:00:01]} 16. Kb1 {[%emt 0:00:02]} Bg5 {[%emt 0:00:14]} 17. Qd3 {[%emt 0:00:36]} Nb6 {[%emt 0:00:57]} 18. Nd5 {[%emt 0:02:38]} Nxd5 {[%emt 0:00:03]} 19. Qxd5 {[%emt 0:00:01]} Qc7 {[%emt 0:00:08]} 20. c3 {[%emt 0:01:04]} Qc6 {[%emt 0:00:17]} 21. Qd3 {[%emt 0:00:04]} Ke7 {[%emt 0:01:22]} 22. Rd1 {[%emt 0:01:31]} Rhd8 {[%emt 0:00:50]} 23. Na1 {[%emt 0:01:09]} Qc4 {[%emt 0:01:00]} 24. Nc2 {[%emt 0:00:38]} Qxd3 {[%emt 0:00:09]} 25. Rxd3 {[%emt 0:00:01]} Rc4 {[%emt 0:00:20]} 26. Re1 {[%emt 0:00:01]} a5 {[%emt 0:00:08]} 27. Na3 {[%emt 0:00:12]} Rc5 {[%emt 0:00:01]} 28. c4 {[%emt 0:00:03]} g6 {[%emt 0:00:42]} 29. fxg6 {[%emt 0:00:15]} fxg6 {[%emt 0:00:01]} 30. Red1 {[%emt 0:00:01]} Ke6 {[%emt 0:01:18]} 31. b3 {[%emt 0:00:07]} Be7 {[%emt 0:00:11]} 32. Rg3 {[%emt 0:00:56]} g5 {[%emt 0:00:12]} 33. Rh3 {[%emt 0:00:08]} Rh8 {[%emt 0:00:02]} 34. Nc2 {[%emt 0:00:08]} b5 {[%emt 0:00:17]} 35. cxb5 {[%emt 0:00:27]} Rxb5 {[%emt 0:00:02]} 36. Ne3 {[%emt 0:00:03]} Rb4 {[%emt 0:00:48]} 37. Nc4 {[%emt 0:00:02]} a4 {[%emt 0:00:02]} 38. a3 {[%emt 0:00:29]} Rxb3+ {[%emt 0:00:22]} 39. Rxb3 {[%emt 0:00:01]} axb3 {[%emt 0:00:02]} 40. Kb2 {[%emt 0:00:21]} h5 {[%emt 0:00:02]} 41. a4 {[%emt 0:00:06]} g4 {[%emt 0:00:06]} 42. a5 {[%emt 0:00:02]} Bh4 {[%emt 0:00:53]} 43. Rxd6+ {[%emt 0:00:06]} Ke7 {[%emt 0:00:01]} 44. a6 {[%emt 0:01:19]} Bf2 {[%emt 0:00:04]} 45. Rg6 {[%emt 0:00:07]} Bd4+ {[%emt 0:00:15]} 46. Kxb3 {[%emt 0:00:07]} Kf7 {[%emt 0:00:02]} 47. Rc6 {[%emt 0:00:27]} h4 {[%emt 0:00:08]} 48. Nd6+ {[%emt 0:00:05]} Ke7 {[%emt 0:00:29]} 49. Nf5+ {[%emt 0:00:03]} Kd7 {[%emt 0:00:01]} 50. Nxd4 {[%emt 0:01:56]} exd4 {[%emt 0:01:23]} 51. Rc1 {[%emt 0:00:50]} Rb8+ {[%emt 0:03:56]} 52. Ka4 {[%emt 0:00:07]} Rb2 {[%emt 0:00:04]} 53. Rg1 {[%emt 0:02:06]} Rxh2 {[%emt 0:01:18]} 54. Rxg4 {[%emt 0:00:02]} Kc7 {[%emt 0:00:02]} 55. Kb5 {[%emt 0:00:55]} Rb2+ {[%emt 0:00:29]} 56. Kc5 {[%emt 0:00:02]} d3 {[%emt 0:00:36]} 57. Rxh4 {[%emt 0:03:28]} Rc2+ {[%emt 0:00:13]} 58. Kb5 {[%emt 0:00:20]} d2 {[%emt 0:00:06]} 59. Rh7+ {[%emt 0:00:17]} Kd6 {[%emt 0:02:12]} 60. Rh6+ {[%emt 0:00:46]} Ke5 {[%emt 0:00:17]} 61. Rh5+ {[%emt 0:00:09]} Kxe4 {[%emt 0:01:00]} 62. Rh1 {[%emt 0:00:24]} 1/2-1/2